[Event "Titled Tuesday Blitz August 17 2021"]
[White "Primbetov, Kazbek"]
[Black "Stoyanov, Tsvetan"]
[WhiteFideId "13702297"]
[BlackFideId "2917173"]
[WhiteElo "2184"]
[BlackElo "2191"]
[Result "1-0"]
[Round "03"]
[TimeControl "180+1"]
[Date "2021.08.17"]
[WhiteClock "0:00:10"]
[BlackClock "0:00:01"]

1. d4 {[%clk 0:02:59]}  d5 {[%clk 0:02:59]} 2. Bf4 {[%clk 0:02:59]}  Nf6 {[%clk 0:02:59]} 3. e3 {[%clk 0:02:59]}  c5 {[%clk 0:02:59]} 4. c3 {[%clk 0:02:59]}  Nc6 {[%clk 0:02:59]} 5. Nd2 {[%clk 0:02:55]}  Nh5 {[%clk 0:02:56]} 6. Qxh5 {[%clk 0:02:52]}  g6 {[%clk 0:02:51]} 7. Qd1 {[%clk 0:02:45]}  Bg7 {[%clk 0:02:51]} 8. Ngf3 {[%clk 0:02:45]}  Qb6 {[%clk 0:02:49]} 9. Qb3 {[%clk 0:02:45]}  Qd8 {[%clk 0:02:43]} 10. h4 {[%clk 0:02:38]}  h5 {[%clk 0:02:37]} 11. Ne5 {[%clk 0:02:26]}  Nxe5 {[%clk 0:02:34]} 12. Bxe5 {[%clk 0:02:25]}  Bxe5 {[%clk 0:02:23]} 13. dxe5 {[%clk 0:02:25]}  O-O {[%clk 0:02:23]} 14. Be2 {[%clk 0:02:08]}  Be6 {[%clk 0:02:07]} 15. Nf3 {[%clk 0:01:59]}  Qc7 {[%clk 0:01:51]} 16. Qa4 {[%clk 0:01:55]}  Bg4 {[%clk 0:01:36]} 17. Qf4 {[%clk 0:01:53]}  Qb6 {[%clk 0:01:36]} 18. b3 {[%clk 0:00:50]}  Qa5 {[%clk 0:01:28]} 19. b4 {[%clk 0:00:50]}  Qa3 {[%clk 0:01:27]} 20. O-O {[%clk 0:00:47]}  Qxc3 {[%clk 0:00:55]} 21. bxc5 {[%clk 0:00:45]}  Qxc5 {[%clk 0:00:52]} 22. Qh6 {[%clk 0:00:33]}  Bxf3 {[%clk 0:00:50]} 23. Bxf3 {[%clk 0:00:34]}  Rad8 {[%clk 0:00:47]} 24. Qg5 {[%clk 0:00:32]}  Kh7 {[%clk 0:00:34]} 25. Rfc1 {[%clk 0:00:28]}  Qa3 {[%clk 0:00:21]} 26. Rc7 {[%clk 0:00:28]}  d4 {[%clk 0:00:15]} 27. exd4 {[%clk 0:00:26]}  Rxd4 {[%clk 0:00:14]} 28. Rxe7 {[%clk 0:00:25]}  Qb2 {[%clk 0:00:07]} 29. Rf1 {[%clk 0:00:17]}  Qxa2 {[%clk 0:00:06]} 30. e6 {[%clk 0:00:16]}  a5 {[%clk 0:00:02]} 31. exf7 {[%clk 0:00:14]}  Rxf7 {[%clk 0:00:02]} 32. Rxf7+ {[%clk 0:00:13]}  Qxf7 {[%clk 0:00:03]} 33. Rb1 {[%clk 0:00:12]}  Rd7 {[%clk 0:00:02]} 34. Qxa5 {[%clk 0:00:11]}  Qf6 {[%clk 0:00:02]} 35. Qg5 {[%clk 0:00:11]}  Qa6 {[%clk 0:00:01]} 36. Be4 {[%clk 0:00:11]}  b5 {[%clk 0:00:01]} 37. Qxh5+ {[%clk 0:00:10]} 1-0


[Site "https://www.chess.com"]

[Event "Titled Tuesday Blitz August 17 2021"]
[White "Przybylski, Wojciech"]
[Black "Laurusas, Tomas"]
[WhiteFideId "1117599"]
[BlackFideId "12803731"]
[WhiteElo "2250"]
[BlackElo "2542"]
[Result "0-1"]
[Round "03"]
[TimeControl "180+1"]
[Date "2021.08.17"]
[WhiteClock "0:00:04"]
[BlackClock "0:00:09"]

1. e4 {[%clk 0:03:00]}  d6 {[%clk 0:02:57]} 2. d4 {[%clk 0:03:00]}  Nf6 {[%clk 0:02:57]} 3. Nc3 {[%clk 0:02:59]}  Nbd7 {[%clk 0:02:57]} 4. Nf3 {[%clk 0:02:59]}  e5 {[%clk 0:02:56]} 5. Bc4 {[%clk 0:02:59]}  c6 {[%clk 0:02:57]} 6. dxe5 {[%clk 0:02:58]}  dxe5 {[%clk 0:02:48]} 7. Ng5 {[%clk 0:02:54]}  Qa5 {[%clk 0:02:17]} 8. Bxf7+ {[%clk 0:02:49]}  Ke7 {[%clk 0:02:10]} 9. Bb3 {[%clk 0:02:41]}  h6 {[%clk 0:01:57]} 10. Nf7 {[%clk 0:02:31]}  Rh7 {[%clk 0:01:46]} 11. Qd6+ {[%clk 0:02:20]}  Ke8 {[%clk 0:01:40]} 12. Qe6+ {[%clk 0:02:06]}  Be7 {[%clk 0:01:38]} 13. Nd6+ {[%clk 0:02:05]}  Kd8 {[%clk 0:01:38]} 14. Nxc8 {[%clk 0:01:53]}  Rxc8 {[%clk 0:01:36]} 15. Be3 {[%clk 0:01:50]}  Bb4 {[%clk 0:01:16]} 16. O-O {[%clk 0:01:41]}  Kc7 {[%clk 0:01:13]} 17. Rad1 {[%clk 0:01:30]}  Rd8 {[%clk 0:01:06]} 18. Qf5 {[%clk 0:01:03]}  Bxc3 {[%clk 0:00:56]} 19. bxc3 {[%clk 0:01:01]}  Rhh8 {[%clk 0:00:56]} 20. Rd3 {[%clk 0:00:58]}  Rhe8 {[%clk 0:00:50]} 21. Rfd1 {[%clk 0:00:56]}  Re7 {[%clk 0:00:46]} 22. h3 {[%clk 0:00:33]}  Rf8 {[%clk 0:00:32]} 23. Qg6 {[%clk 0:00:13]}  Nc5 {[%clk 0:00:28]} 24. Bxc5 {[%clk 0:00:12]}  Qxc5 {[%clk 0:00:29]} 25. R1d2 {[%clk 0:00:10]}  a5 {[%clk 0:00:27]} 26. a4 {[%clk 0:00:10]}  Kb6 {[%clk 0:00:17]} 27. Kh2 {[%clk 0:00:09]}  Ka7 {[%clk 0:00:17]} 28. f3 {[%clk 0:00:07]}  h5 {[%clk 0:00:16]} 29. Qg3 {[%clk 0:00:07]}  Rh8 {[%clk 0:00:12]} 30. Qe1 {[%clk 0:00:06]}  h4 {[%clk 0:00:12]} 31. Qd1 {[%clk 0:00:07]}  Nh5 {[%clk 0:00:10]} 32. Qg1 {[%clk 0:00:07]}  Kb6 {[%clk 0:00:09]} 33. Rd7 {[%clk 0:00:05]}  Rhe8 {[%clk 0:00:08]} 34. Qxc5+ {[%clk 0:00:04]}  Kxc5 {[%clk 0:00:08]} 35. Kg1 {[%clk 0:00:04]}  Nf4 {[%clk 0:00:07]} 36. Kf2 {[%clk 0:00:04]}  Kb6 {[%clk 0:00:07]} 37. Rxe7 {[%clk 0:00:04]}  Rxe7 {[%clk 0:00:07]} 38. Rd8 {[%clk 0:00:04]}  Kc7 {[%clk 0:00:07]} 39. Rd2 {[%clk 0:00:03]}  Re8 {[%clk 0:00:07]} 40. Rd1 {[%clk 0:00:03]}  Rf8 {[%clk 0:00:08]} 41. Rd2 {[%clk 0:00:03]}  Rf6 {[%clk 0:00:08]} 42. Ke3 {[%clk 0:00:03]}  Rg6 {[%clk 0:00:08]} 43. c4 {[%clk 0:00:02]}  Nxg2+ {[%clk 0:00:08]} 44. Kd3 {[%clk 0:00:03]}  Nf4+ {[%clk 0:00:09]} 45. Kc3 {[%clk 0:00:03]}  Nxh3 {[%clk 0:00:09]} 46. Rh2 {[%clk 0:00:03]}  Rg3 {[%clk 0:00:10]} 47. Kb2 {[%clk 0:00:03]}  g5 {[%clk 0:00:10]} 48. c5 {[%clk 0:00:04]}  Nf4 {[%clk 0:00:10]} 49. Be6 {[%clk 0:00:04]}  Rxf3 {[%clk 0:00:10]} 50. Bc4 {[%clk 0:00:04]}  Re3 {[%clk 0:00:09]} 51. Bb3 {[%clk 0:00:03]}  Rxe4 {[%clk 0:00:09]} 52. Rd2 {[%clk 0:00:04]}  h3 {[%clk 0:00:09]} 53. Rd1 {[%clk 0:00:04]}  g4 {[%clk 0:00:09]} 54. Rf1 {[%clk 0:00:04]}  h2 {[%clk 0:00:09]} 55. Rh1 {[%clk 0:00:04]}  g3 {[%clk 0:00:09]} 56. Rd1 {[%clk 0:00:03]}  g2 {[%clk 0:00:09]} 57. Rd6 {[%clk 0:00:03]}  h1=Q {[%clk 0:00:09]} 58. Rf6 {[%clk 0:00:03]}  g1=Q {[%clk 0:00:09]} 59. Rf7+ {[%clk 0:00:03]}  Kd8 {[%clk 0:00:09]} 60. Rf8+ {[%clk 0:00:03]}  Ke7 {[%clk 0:00:10]} 61. Rb8 {[%clk 0:00:04]}  Qa1# {[%clk 0:00:09]} 0-1


[Site "https://www.chess.com"]

[Event "Titled Tuesday Blitz August 17 2021"]
[White "Pultinevicius, Paulius"]
[Black "Majer, Damir"]
[WhiteFideId "12809390"]
[BlackFideId "4615689"]
[WhiteElo "2479"]
[BlackElo "2416"]
[Result "1-0"]
[Round "03"]
[TimeControl "180+1"]
[Date "2021.08.17"]
[WhiteClock "0:00:05"]
[BlackClock "0:00:02"]

1. d4 {[%clk 0:03:00]}  d5 {[%clk 0:02:58]} 2. c4 {[%clk 0:03:00]}  e6 {[%clk 0:02:58]} 3. Nc3 {[%clk 0:03:00]}  Nf6 {[%clk 0:02:58]} 4. Bg5 {[%clk 0:02:59]}  Be7 {[%clk 0:02:58]} 5. Nf3 {[%clk 0:02:59]}  Nbd7 {[%clk 0:02:57]} 6. e3 {[%clk 0:02:59]}  h6 {[%clk 0:02:56]} 7. Bh4 {[%clk 0:02:59]}  O-O {[%clk 0:02:56]} 8. Rc1 {[%clk 0:02:58]}  dxc4 {[%clk 0:02:55]} 9. Bxc4 {[%clk 0:02:57]}  a6 {[%clk 0:02:55]} 10. O-O {[%clk 0:02:51]}  b5 {[%clk 0:02:54]} 11. Bd3 {[%clk 0:02:48]}  c5 {[%clk 0:02:54]} 12. Qe2 {[%clk 0:02:40]}  Bb7 {[%clk 0:02:52]} 13. Rfd1 {[%clk 0:02:40]}  cxd4 {[%clk 0:02:48]} 14. Nxd4 {[%clk 0:02:38]}  Qb6 {[%clk 0:02:44]} 15. f3 {[%clk 0:02:28]}  Rfd8 {[%clk 0:02:24]} 16. a3 {[%clk 0:02:24]}  Rac8 {[%clk 0:02:23]} 17. Kh1 {[%clk 0:02:17]}  Ne5 {[%clk 0:02:14]} 18. Bb1 {[%clk 0:02:15]}  Nc4 {[%clk 0:01:58]} 19. Bf2 {[%clk 0:02:03]}  Nd5 {[%clk 0:01:51]} 20. Nxd5 {[%clk 0:01:57]}  exd5 {[%clk 0:01:25]} 21. Nf5 {[%clk 0:01:43]}  Bf8 {[%clk 0:01:22]} 22. Qd3 {[%clk 0:01:15]}  g6 {[%clk 0:01:18]} 23. Bh4 {[%clk 0:00:49]}  Re8 {[%clk 0:01:13]} 24. Re1 {[%clk 0:00:27]}  Nxb2 {[%clk 0:00:57]} 25. Qb3 {[%clk 0:00:24]}  Nc4 {[%clk 0:00:53]} 26. Nd4 {[%clk 0:00:23]}  Nd2 {[%clk 0:00:48]} 27. Qd3 {[%clk 0:00:21]}  Nxb1 {[%clk 0:00:42]} 28. Rxb1 {[%clk 0:00:20]}  Rc4 {[%clk 0:00:34]} 29. Red1 {[%clk 0:00:19]}  Qc7 {[%clk 0:00:29]} 30. Be1 {[%clk 0:00:18]}  Qe5 {[%clk 0:00:26]} 31. Bd2 {[%clk 0:00:18]}  Bd6 {[%clk 0:00:25]} 32. g3 {[%clk 0:00:15]}  Qf6 {[%clk 0:00:24]} 33. Kg2 {[%clk 0:00:15]}  h5 {[%clk 0:00:24]} 34. Rdc1 {[%clk 0:00:13]}  Rec8 {[%clk 0:00:23]} 35. Re1 {[%clk 0:00:12]}  Be5 {[%clk 0:00:21]} 36. Ne2 {[%clk 0:00:11]}  Rc2 {[%clk 0:00:20]} 37. Rec1 {[%clk 0:00:10]}  Rxc1 {[%clk 0:00:12]} 38. Rxc1 {[%clk 0:00:11]}  Rxc1 {[%clk 0:00:11]} 39. Bxc1 {[%clk 0:00:12]}  Qc6 {[%clk 0:00:11]} 40. Bd2 {[%clk 0:00:12]}  d4 {[%clk 0:00:11]} 41. e4 {[%clk 0:00:11]}  Qc4 {[%clk 0:00:11]} 42. Nc1 {[%clk 0:00:12]}  Qc5 {[%clk 0:00:09]} 43. Kf2 {[%clk 0:00:09]}  h4 {[%clk 0:00:06]} 44. gxh4 {[%clk 0:00:08]}  Bxh2 {[%clk 0:00:06]} 45. Ke2 {[%clk 0:00:08]}  Be5 {[%clk 0:00:06]} 46. Nb3 {[%clk 0:00:09]}  Qc4 {[%clk 0:00:06]} 47. Nc1 {[%clk 0:00:07]}  Qc5 {[%clk 0:00:05]} 48. Kd1 {[%clk 0:00:06]}  Qc4 {[%clk 0:00:05]} 49. Bb4 {[%clk 0:00:06]}  Bc6 {[%clk 0:00:04]} 50. Qd2 {[%clk 0:00:05]}  Bd7 {[%clk 0:00:04]} 51. Nd3 {[%clk 0:00:06]}  Qb3+ {[%clk 0:00:03]} 52. Qc2 {[%clk 0:00:06]}  Be6 {[%clk 0:00:02]} 53. Nxe5 {[%clk 0:00:05]} 1-0


[Site "https://www.chess.com"]

[Event "Titled Tuesday Blitz August 17 2021"]
[White "Quparadze, Giga"]
[Black "Zakhartsov, Vladimir"]
[WhiteFideId "13602250"]
[BlackFideId "4145097"]
[WhiteElo "2658"]
[BlackElo "2488"]
[Result "1/2-1/2"]
[Round "03"]
[TimeControl "180+1"]
[Date "2021.08.17"]
[WhiteClock "0:00:45"]
[BlackClock "0:00:05"]

1. e4 {[%clk 0:03:00]}  c5 {[%clk 0:02:59]} 2. Ne2 {[%clk 0:03:00]}  d6 {[%clk 0:02:50]} 3. g3 {[%clk 0:02:59]}  h5 {[%clk 0:02:48]} 4. h3 {[%clk 0:02:57]}  d5 {[%clk 0:02:46]} 5. Bg2 {[%clk 0:02:56]}  dxe4 {[%clk 0:02:43]} 6. Nbc3 {[%clk 0:02:56]}  Nf6 {[%clk 0:02:40]} 7. Nxe4 {[%clk 0:02:56]}  Nxe4 {[%clk 0:02:39]} 8. Bxe4 {[%clk 0:02:56]}  Nc6 {[%clk 0:02:40]} 9. d3 {[%clk 0:02:53]}  g6 {[%clk 0:02:38]} 10. Be3 {[%clk 0:02:52]}  Bg7 {[%clk 0:02:38]} 11. c3 {[%clk 0:02:52]}  Qa5 {[%clk 0:02:23]} 12. Qb3 {[%clk 0:02:41]}  Ne5 {[%clk 0:02:11]} 13. f4 {[%clk 0:02:28]}  Nd7 {[%clk 0:01:52]} 14. O-O {[%clk 0:02:17]}  Nf6 {[%clk 0:01:50]} 15. f5 {[%clk 0:02:13]}  gxf5 {[%clk 0:01:34]} 16. Bxf5 {[%clk 0:02:02]}  c4 {[%clk 0:01:29]} 17. Qb4 {[%clk 0:01:35]}  Qxb4 {[%clk 0:01:27]} 18. cxb4 {[%clk 0:01:36]}  Bxf5 {[%clk 0:01:26]} 19. Rxf5 {[%clk 0:01:37]}  cxd3 {[%clk 0:01:26]} 20. Nf4 {[%clk 0:01:37]}  Rd8 {[%clk 0:01:00]} 21. Rd1 {[%clk 0:01:36]}  e6 {[%clk 0:00:55]} 22. Rb5 {[%clk 0:01:34]}  b6 {[%clk 0:00:54]} 23. Rxd3 {[%clk 0:01:34]}  Rxd3 {[%clk 0:00:53]} 24. Nxd3 {[%clk 0:01:35]}  Nd5 {[%clk 0:00:53]} 25. Bf2 {[%clk 0:01:32]}  a6 {[%clk 0:00:39]} 26. Rxd5 {[%clk 0:01:31]}  exd5 {[%clk 0:00:40]} 27. Bxb6 {[%clk 0:01:32]}  Kd7 {[%clk 0:00:39]} 28. a4 {[%clk 0:01:31]}  Kc6 {[%clk 0:00:35]} 29. Bc5 {[%clk 0:01:29]}  Re8 {[%clk 0:00:28]} 30. Kf2 {[%clk 0:01:29]}  Re4 {[%clk 0:00:24]} 31. Kf3 {[%clk 0:01:24]}  Bh6 {[%clk 0:00:16]} 32. Bf2 {[%clk 0:01:20]}  Bg7 {[%clk 0:00:14]} 33. b5+ {[%clk 0:01:18]}  axb5 {[%clk 0:00:12]} 34. a5 {[%clk 0:01:18]}  Ra4 {[%clk 0:00:08]} 35. a6 {[%clk 0:01:18]}  b4 {[%clk 0:00:07]} 36. b3 {[%clk 0:01:14]}  Ra3 {[%clk 0:00:07]} 37. Nxb4+ {[%clk 0:01:15]}  Kb5 {[%clk 0:00:06]} 38. Nxd5 {[%clk 0:01:14]}  Rxb3+ {[%clk 0:00:06]} 39. Ke4 {[%clk 0:01:14]}  Kxa6 {[%clk 0:00:06]} 40. Nf4 {[%clk 0:01:13]}  h4 {[%clk 0:00:05]} 41. gxh4 {[%clk 0:01:13]}  Kb7 {[%clk 0:00:04]} 42. Nd3 {[%clk 0:01:10]}  Kc6 {[%clk 0:00:04]} 43. Bg3 {[%clk 0:01:11]}  Ra3 {[%clk 0:00:03]} 44. Bf4 {[%clk 0:01:09]}  Ra4+ {[%clk 0:00:03]} 45. Kf5 {[%clk 0:01:09]}  Kd5 {[%clk 0:00:03]} 46. Nf2 {[%clk 0:01:07]}  Ra3 {[%clk 0:00:03]} 47. Kg4 {[%clk 0:01:04]}  Bd4 {[%clk 0:00:03]} 48. Nh1 {[%clk 0:01:03]}  Ke6 {[%clk 0:00:03]} 49. Ng3 {[%clk 0:01:03]}  Bf2 {[%clk 0:00:03]} 50. Nf5 {[%clk 0:01:03]}  Ra5 {[%clk 0:00:03]} 51. Ng7+ {[%clk 0:01:03]}  Kf6 {[%clk 0:00:03]} 52. Nh5+ {[%clk 0:00:58]}  Kg6 {[%clk 0:00:03]} 53. Ng3 {[%clk 0:00:59]}  f5+ {[%clk 0:00:03]} 54. Kf3 {[%clk 0:00:59]}  Bxg3 {[%clk 0:00:03]} 55. Kxg3 {[%clk 0:00:59]}  Ra3+ {[%clk 0:00:03]} 56. Kg2 {[%clk 0:01:00]}  Ra4 {[%clk 0:00:03]} 57. Bg5 {[%clk 0:00:59]}  Re4 {[%clk 0:00:03]} 58. Kf3 {[%clk 0:00:59]}  Kh5 {[%clk 0:00:04]} 59. Kg3 {[%clk 0:00:59]}  Kg6 {[%clk 0:00:05]} 60. Kf3 {[%clk 0:01:00]}  Ra4 {[%clk 0:00:05]} 61. Kg3 {[%clk 0:01:00]}  Ra3+ {[%clk 0:00:06]} 62. Kg2 {[%clk 0:00:59]}  Kh5 {[%clk 0:00:05]} 63. Kh2 {[%clk 0:00:56]}  Rb3 {[%clk 0:00:06]} 64. Kg2 {[%clk 0:00:57]}  Kg6 {[%clk 0:00:06]} 65. Kh2 {[%clk 0:00:57]}  Rd3 {[%clk 0:00:06]} 66. Kg2 {[%clk 0:00:57]}  Kf7 {[%clk 0:00:06]} 67. h5 {[%clk 0:00:56]}  Ke6 {[%clk 0:00:03]} 68. h6 {[%clk 0:00:56]}  Kf7 {[%clk 0:00:03]} 69. Bf4 {[%clk 0:00:51]}  Kg6 {[%clk 0:00:04]} 70. Kh2 {[%clk 0:00:50]}  Rf3 {[%clk 0:00:03]} 71. Bc1 {[%clk 0:00:46]}  Rf1 {[%clk 0:00:03]} 72. Be3 {[%clk 0:00:44]}  f4 {[%clk 0:00:03]} 73. Kg2 {[%clk 0:00:43]}  fxe3 {[%clk 0:00:02]} 74. Kxf1 {[%clk 0:00:44]}  Kxh6 {[%clk 0:00:03]} 75. Ke2 {[%clk 0:00:44]}  Kh5 {[%clk 0:00:04]} 76. Kxe3 {[%clk 0:00:45]}  Kh4 {[%clk 0:00:04]} 77. Ke4 {[%clk 0:00:45]}  Kxh3 {[%clk 0:00:05]} 1/2-1/2


[Site "https://www.chess.com"]

[Event "Titled Tuesday Blitz August 17 2021"]
[White "Radu, David Cr."]
[Black "Karavade, Eesha"]
[WhiteFideId "1265717"]
[BlackFideId "5012600"]
[WhiteElo "1666"]
[BlackElo "2258"]
[Result "0-1"]
[Round "03"]
[TimeControl "180+1"]
[Date "2021.08.18"]
[WhiteClock "0:00:07"]
[BlackClock "0:00:21"]

1. e4 {[%clk 0:03:00]}  c5 {[%clk 0:02:59]} 2. Nc3 {[%clk 0:02:59]}  d6 {[%clk 0:02:58]} 3. f4 {[%clk 0:02:59]}  g6 {[%clk 0:02:57]} 4. Nf3 {[%clk 0:02:59]}  Bg7 {[%clk 0:02:57]} 5. Bc4 {[%clk 0:02:59]}  Nc6 {[%clk 0:02:54]} 6. O-O {[%clk 0:02:58]}  e6 {[%clk 0:02:54]} 7. d4 {[%clk 0:02:56]}  cxd4 {[%clk 0:02:42]} 8. Nb5 {[%clk 0:02:55]}  Nge7 {[%clk 0:02:39]} 9. Nbxd4 {[%clk 0:02:53]}  Nxd4 {[%clk 0:02:38]} 10. Nxd4 {[%clk 0:02:53]}  Qb6 {[%clk 0:02:37]} 11. c3 {[%clk 0:02:33]}  O-O {[%clk 0:02:14]} 12. Kh1 {[%clk 0:02:32]}  d5 {[%clk 0:02:07]} 13. exd5 {[%clk 0:02:10]}  exd5 {[%clk 0:02:06]} 14. Be2 {[%clk 0:02:10]}  Bxd4 {[%clk 0:01:57]} 15. cxd4 {[%clk 0:02:02]}  Nf5 {[%clk 0:01:57]} 16. g4 {[%clk 0:02:02]}  Nd6 {[%clk 0:01:53]} 17. f5 {[%clk 0:01:43]}  Bd7 {[%clk 0:01:53]} 18. Bh6 {[%clk 0:01:18]}  Rfe8 {[%clk 0:01:52]} 19. Qd2 {[%clk 0:01:13]}  Bb5 {[%clk 0:01:42]} 20. Bxb5 {[%clk 0:01:12]}  Qxb5 {[%clk 0:01:26]} 21. fxg6 {[%clk 0:01:06]}  hxg6 {[%clk 0:01:12]} 22. Qf4 {[%clk 0:00:59]}  Re6 {[%clk 0:01:12]} 23. Bg5 {[%clk 0:00:52]}  Qd3 {[%clk 0:00:48]} 24. Rae1 {[%clk 0:00:46]}  Rae8 {[%clk 0:00:44]} 25. Rxe6 {[%clk 0:00:29]}  Rxe6 {[%clk 0:00:44]} 26. Bf6 {[%clk 0:00:16]}  Qe4+ {[%clk 0:00:41]} 27. Kg1 {[%clk 0:00:12]}  Qxf4 {[%clk 0:00:39]} 28. Rxf4 {[%clk 0:00:13]}  Ne4 {[%clk 0:00:39]} 29. Be5 {[%clk 0:00:13]}  f6 {[%clk 0:00:39]} 30. Bb8 {[%clk 0:00:13]}  Kf7 {[%clk 0:00:36]} 31. Bxa7 {[%clk 0:00:09]}  Ra6 {[%clk 0:00:37]} 32. Bc5 {[%clk 0:00:07]}  Rxa2 {[%clk 0:00:35]} 33. b4 {[%clk 0:00:07]}  b5 {[%clk 0:00:32]} 34. Rf1 {[%clk 0:00:07]}  g5 {[%clk 0:00:31]} 35. Rc1 {[%clk 0:00:05]}  Ke6 {[%clk 0:00:31]} 36. Rf1 {[%clk 0:00:04]}  Nc3 {[%clk 0:00:27]} 37. Rf2 {[%clk 0:00:02]}  Rxf2 {[%clk 0:00:26]} 38. Kxf2 {[%clk 0:00:03]}  Ne4+ {[%clk 0:00:26]} 39. Ke3 {[%clk 0:00:04]}  Nc3 {[%clk 0:00:23]} 40. Kd3 {[%clk 0:00:03]}  Nd1 {[%clk 0:00:22]} 41. Ke2 {[%clk 0:00:03]}  Nb2 {[%clk 0:00:21]} 42. Ke3 {[%clk 0:00:03]}  Nc4+ {[%clk 0:00:21]} 43. Kd3 {[%clk 0:00:03]}  f5 {[%clk 0:00:20]} 44. gxf5+ {[%clk 0:00:03]}  Kxf5 {[%clk 0:00:21]} 45. Be7 {[%clk 0:00:01]}  g4 {[%clk 0:00:19]} 46. Bd8 {[%clk 0:00:02]}  Kf4 {[%clk 0:00:19]} 47. Bc7+ {[%clk 0:00:03]}  Kf3 {[%clk 0:00:19]} 48. Bg3 {[%clk 0:00:04]}  Nb2+ {[%clk 0:00:18]} 49. Kc2 {[%clk 0:00:03]}  Nc4 {[%clk 0:00:19]} 50. Kd3 {[%clk 0:00:04]}  Ne3 {[%clk 0:00:19]} 51. Be1 {[%clk 0:00:02]}  Nf1 {[%clk 0:00:20]} 52. Bd2 {[%clk 0:00:01]}  Nxh2 {[%clk 0:00:18]} 53. Bg5 {[%clk 0:00:01]}  Nf1 {[%clk 0:00:18]} 54. Bh4 {[%clk 0:00:01]}  g3 {[%clk 0:00:18]} 55. Bxg3 {[%clk 0:00:01]}  Nxg3 {[%clk 0:00:18]} 56. Kc3 {[%clk 0:00:02]}  Ne4+ {[%clk 0:00:18]} 57. Kd3 {[%clk 0:00:03]}  Kf4 {[%clk 0:00:19]} 58. Kc2 {[%clk 0:00:02]}  Ke3 {[%clk 0:00:19]} 59. Kb2 {[%clk 0:00:03]}  Kxd4 {[%clk 0:00:19]} 60. Ka1 {[%clk 0:00:04]}  Kc4 {[%clk 0:00:20]} 61. Ka2 {[%clk 0:00:05]}  d4 {[%clk 0:00:20]} 62. Ka1 {[%clk 0:00:06]}  d3 {[%clk 0:00:20]} 63. Ka2 {[%clk 0:00:07]}  d2 {[%clk 0:00:21]} 0-1


[Site "https://www.chess.com"]

[Event "Titled Tuesday Blitz August 17 2021"]
[White "Richter, Nils"]
[Black "Potapova, Margarita"]
[WhiteFideId "12990809"]
[BlackFideId "14126869"]
[WhiteElo "2289"]
[BlackElo "2214"]
[Result "1-0"]
[Round "03"]
[TimeControl "180+1"]
[Date "2021.08.18"]
[WhiteClock "0:00:22"]
[BlackClock "0:00:06"]

1. e4 {[%clk 0:03:00]}  c5 {[%clk 0:02:59]} 2. Nf3 {[%clk 0:03:00]}  d6 {[%clk 0:03:00]} 3. Bb5+ {[%clk 0:02:59]}  Nd7 {[%clk 0:03:00]} 4. a4 {[%clk 0:02:58]}  g6 {[%clk 0:02:59]} 5. O-O {[%clk 0:02:58]}  Bg7 {[%clk 0:02:58]} 6. c3 {[%clk 0:02:57]}  a6 {[%clk 0:02:58]} 7. Bd3 {[%clk 0:02:55]}  Ngf6 {[%clk 0:02:55]} 8. Bc2 {[%clk 0:02:55]}  e5 {[%clk 0:02:55]} 9. d4 {[%clk 0:02:51]}  cxd4 {[%clk 0:02:52]} 10. cxd4 {[%clk 0:02:51]}  O-O {[%clk 0:02:52]} 11. Nc3 {[%clk 0:02:50]}  exd4 {[%clk 0:02:45]} 12. Nxd4 {[%clk 0:02:50]}  Re8 {[%clk 0:02:46]} 13. h3 {[%clk 0:02:49]}  Nc5 {[%clk 0:02:46]} 14. Re1 {[%clk 0:02:48]}  Bd7 {[%clk 0:02:34]} 15. Bf4 {[%clk 0:02:47]}  Ne6 {[%clk 0:02:18]} 16. Nxe6 {[%clk 0:02:39]}  Bxe6 {[%clk 0:02:19]} 17. Qxd6 {[%clk 0:02:36]}  Nh5 {[%clk 0:02:19]} 18. Qxd8 {[%clk 0:02:32]}  Raxd8 {[%clk 0:02:19]} 19. Bg5 {[%clk 0:02:32]}  Rc8 {[%clk 0:02:15]} 20. g4 {[%clk 0:02:22]}  Nf6 {[%clk 0:02:14]} 21. e5 {[%clk 0:02:13]}  Nd5 {[%clk 0:02:08]} 22. Nxd5 {[%clk 0:02:12]}  Bxd5 {[%clk 0:02:09]} 23. Be4 {[%clk 0:01:47]}  Rxe5 {[%clk 0:01:58]} 24. Bxd5 {[%clk 0:01:42]}  Rxd5 {[%clk 0:01:59]} 25. Be3 {[%clk 0:01:33]}  Bxb2 {[%clk 0:01:58]} 26. Rab1 {[%clk 0:01:22]}  Rc2 {[%clk 0:01:58]} 27. a5 {[%clk 0:01:18]}  f5 {[%clk 0:01:33]} 28. Bb6 {[%clk 0:01:13]}  Kf7 {[%clk 0:01:29]} 29. Re3 {[%clk 0:00:55]}  Rc1+ {[%clk 0:01:18]} 30. Rxc1 {[%clk 0:00:54]}  Bxc1 {[%clk 0:01:19]} 31. Rc3 {[%clk 0:00:50]}  Bf4 {[%clk 0:01:19]} 32. Rc8 {[%clk 0:00:45]}  Kf6 {[%clk 0:01:07]} 33. Rh8 {[%clk 0:00:42]}  Kg7 {[%clk 0:00:59]} 34. Re8 {[%clk 0:00:40]}  Kf7 {[%clk 0:00:53]} 35. Rh8 {[%clk 0:00:39]}  Kg7 {[%clk 0:00:43]} 36. Re8 {[%clk 0:00:40]}  Rd7 {[%clk 0:00:41]} 37. Kg2 {[%clk 0:00:40]}  Bc7 {[%clk 0:00:38]} 38. Bxc7 {[%clk 0:00:30]}  Rxc7 {[%clk 0:00:39]} 39. Re6 {[%clk 0:00:31]}  Kf7 {[%clk 0:00:32]} 40. Rb6 {[%clk 0:00:31]}  f4 {[%clk 0:00:26]} 41. h4 {[%clk 0:00:28]}  Rd7 {[%clk 0:00:08]} 42. Kf3 {[%clk 0:00:28]}  Rd3+ {[%clk 0:00:08]} 43. Kxf4 {[%clk 0:00:27]}  Rd7 {[%clk 0:00:09]} 44. Kg3 {[%clk 0:00:27]}  Rc7 {[%clk 0:00:09]} 45. f3 {[%clk 0:00:27]}  Rd7 {[%clk 0:00:08]} 46. Kf4 {[%clk 0:00:26]}  Rd4+ {[%clk 0:00:09]} 47. Ke3 {[%clk 0:00:26]}  Rd7 {[%clk 0:00:09]} 48. Ke4 {[%clk 0:00:26]}  Ke7 {[%clk 0:00:10]} 49. Ke5 {[%clk 0:00:25]}  Kd8 {[%clk 0:00:08]} 50. f4 {[%clk 0:00:23]}  Kc7 {[%clk 0:00:09]} 51. f5 {[%clk 0:00:24]}  gxf5 {[%clk 0:00:08]} 52. gxf5 {[%clk 0:00:24]}  Rd1 {[%clk 0:00:08]} 53. Rh6 {[%clk 0:00:22]}  b5 {[%clk 0:00:07]} 54. axb6+ {[%clk 0:00:20]}  Kb7 {[%clk 0:00:07]} 55. Rxh7+ {[%clk 0:00:21]}  Kxb6 {[%clk 0:00:07]} 56. f6 {[%clk 0:00:22]}  Rf1 {[%clk 0:00:07]} 57. Rh5 {[%clk 0:00:21]}  Re1+ {[%clk 0:00:06]} 58. Kf4 {[%clk 0:00:20]}  Rf1+ {[%clk 0:00:05]} 59. Kg5 {[%clk 0:00:20]}  a5 {[%clk 0:00:05]} 60. Kg6 {[%clk 0:00:21]}  Rg1+ {[%clk 0:00:05]} 61. Rg5 {[%clk 0:00:21]}  Rf1 {[%clk 0:00:04]} 62. f7 {[%clk 0:00:21]}  a4 {[%clk 0:00:04]} 63. Rf5 {[%clk 0:00:21]}  Rg1+ {[%clk 0:00:04]} 64. Kh7 {[%clk 0:00:20]}  a3 {[%clk 0:00:05]} 65. f8=Q {[%clk 0:00:20]}  a2 {[%clk 0:00:06]} 66. Qb4+ {[%clk 0:00:20]}  Kc7 {[%clk 0:00:06]} 67. Rc5+ {[%clk 0:00:20]}  Kd7 {[%clk 0:00:06]} 68. Qd4+ {[%clk 0:00:21]}  Ke6 {[%clk 0:00:06]} 69. Qxg1 {[%clk 0:00:22]} 1-0


[Site "https://www.chess.com"]